bitfinex/quotes_BTCUSD_20251114
["timestamp","ask_amount","ask_price","bid_price","bid_amount"]
[1763154609547,0.08436,94945.0,94944.0,0.00308386]
[1763154609966,0.08436,94945.0,94944.0,0.00608386]
[1763154610168,0.08436,94945.0,94944.0,0.00408386]
[1763154610388,0.08436,94945.0,94944.0,0.00208386]
[1763154610794,0.08436,94945.0,94944.0,0.00308386]
[1763154611002,0.09436,94945.0,94944.0,0.00308386]
[1763154611218,0.09436,94945.0,94944.0,0.00208386]
[1763154611650,0.09436,94945.0,94944.0,0.00408386]
[1763154612709,0.09436,94945.0,94944.0,0.00208386]
[1763154612983,0.09436,94945.0,94944.0,0.00308386]
[1763154613202,0.09436,94945.0,94944.0,0.00408386]
[1763154613419,0.09436,94945.0,94944.0,0.00308386]
[1763154613420,0.4395998,94945.0,94944.0,0.00308386]
[1763154613635,0.41736,94945.0,94944.0,0.00308386]
[1763154613858,0.41736,94945.0,94944.0,0.00408386]
[1763154614308,0.333,94945.0,94944.0,0.00408386]
[1763154614529,0.41736,94945.0,94944.0,0.00208386]
[1763154614750,0.41736,94945.0,94944.0,0.00308386]
[1763154615654,0.43692682,94945.0,94944.0,0.00308386]
[1763154615872,0.41736,94945.0,94944.0,0.00208386]
[1763154616076,0.4174,94945.0,94944.0,0.00208386]
[1763154616287,0.4174,94945.0,94944.0,0.00308386]
[1763154616495,0.43697671,94945.0,94944.0,0.00308386]
[1763154616701,0.4174,94945.0,94944.0,0.00208386]
[1763154616947,0.4174,94945.0,94944.0,0.00308386]
[1763154618950,0.4074,94945.0,94944.0,0.00308386]
[1763154619170,0.43699523,94945.0,94944.0,0.00308386]
[1763154619820,0.43699523,94945.0,94944.0,0.00208386]
[1763154623483,0.47041397,94945.0,94944.0,0.00208386]
[1763154623690,0.48041397,94945.0,94944.0,0.00208386]
[1763154623901,0.43699523,94945.0,94944.0,0.00208386]
[1763154625254,0.43799523,94945.0,94944.0,0.00208386]
[1763154628345,0.45452348,94945.0,94944.0,0.00208386]
[1763154629009,0.49794222,94945.0,94944.0,0.00208386]
[1763154629369,0.59465447,94945.0,94944.0,0.00208386]
[1763154629573,0.70575447,94945.0,94944.0,0.00208386]
[1763154629800,0.59339082,94945.0,94944.0,0.00208386]
[1763154630143,0.43007082,94945.0,94944.0,0.00208386]
[1763154630589,0.49229082,94945.0,94944.0,0.00208386]
[1763154630805,0.42907082,94945.0,94944.0,0.00208386]
[1763154631025,0.19047082,94945.0,94944.0,0.00208386]
[1763154631233,0.52671062,94945.0,94944.0,0.00208386]
[1763154631449,0.51347082,94945.0,94944.0,0.00208386]
[1763154631867,0.51447082,94945.0,94944.0,0.00208386]
[1763154632170,0.51347082,94945.0,94944.0,0.00208386]
[1763154632369,0.57695082,94945.0,94944.0,0.00208386]
[1763154632987,0.57795082,94945.0,94944.0,0.00208386]
[1763154633423,0.49355082,94945.0,94944.0,0.00208386]
[1763154634639,0.60465082,94945.0,94944.0,0.00208386]
[1763154635181,0.39701397,94945.0,94944.0,0.00208386]
[1763154635410,0.46049397,94945.0,94944.0,0.00208386]
[1763154636121,0.45049397,94945.0,94944.0,0.00208386]
[1763154636321,0.39701397,94945.0,94944.0,0.00208386]
[1763154636893,0.35359523,94945.0,94944.0,0.00208386]
[1763154637287,0.39701397,94945.0,94944.0,0.00208386]
[1763154637732,0.07401397,94945.0,94944.0,0.00208386]
[1763154637908,0.04743104,94945.0,94944.0,0.00208386]
[1763154638125,0.03059523,94945.0,94944.0,0.00208386]
[1763154638357,0.05283503,94945.0,94944.0,0.00208386]
[1763154638995,0.04420058,94945.0,94944.0,0.00208386]
[1763154639288,0.04997048,94945.0,94944.0,0.00208386]
[1763154639555,0.03040107,94945.0,94944.0,0.00208386]
[1763154639788,0.04997776,94945.0,94944.0,0.00208386]
[1763154640336,0.05059869,94945.0,94944.0,0.00208386]
[1763154640757,0.13503869,94945.0,94944.0,0.00208386]
[1763154641111,0.15156599,94945.0,94944.0,0.00208386]
[1763154641324,0.47456599,94945.0,94944.0,0.00208386]
[1763154641519,0.47007157,94945.0,94944.0,0.00208386]
[1763154649219,0.51345031,94945.0,94944.0,0.00208386]
[1763154649606,0.49692301,94945.0,94944.0,0.00208386]
[1763154650020,0.48039543,94945.0,94944.0,0.00208386]
[1763154650423,0.65497543,94945.0,94944.0,0.00208386]
[1763154650623,0.69041465,94945.0,94944.0,0.00208386]
[1763154650824,0.65497543,94945.0,94944.0,0.00208386]
[1763154651036,0.59149543,94945.0,94944.0,0.00208386]
[1763154652023,0.59249543,94945.0,94944.0,0.00208386]
[1763154652850,0.60902402,94945.0,94944.0,0.00208386]
[1763154653053,0.49792402,94945.0,94944.0,0.00208386]
[1763154653866,0.36010528,94945.0,94944.0,0.00208386]
[1763154654077,0.45450528,94945.0,94944.0,0.00208386]
[1763154654961,0.49792402,94945.0,94944.0,0.00208386]
[1763154655384,0.49692402,94945.0,94944.0,0.00208386]
[1763154660383,0.01,94927.0,94926.0,0.00409751]
[1763154660592,0.01,94927.0,94926.0,0.00423269]
[1763154660819,0.0322398,94927.0,94926.0,0.00423269]
[1763154662358,0.09526307,94927.0,94926.0,0.00423269]
[1763154662520,0.02960453,94927.0,94926.0,0.00423269]
[1763154662937,0.41744,94927.0,94926.0,0.00423269]
[1763154665021,0.40744,94927.0,94926.0,0.00423269]
[1763154665236,0.01,94927.0,94926.0,0.00423269]
[1763154665444,0.09444,94927.0,94926.0,0.00423269]
[1763154665654,0.08444,94927.0,94916.0,0.07496442]
[1763154665877,0.01,94917.0,94909.0,0.21072817]
[1763154666091,0.08444,94926.0,94906.0,0.21073269]
[1763154666296,0.0023944,94925.0,94922.0,0.05688761]
[1763154666509,0.0023944,94925.0,94905.0,0.0105]
[1763154666510,0.0023944,94925.0,94923.0,0.05688761]
[1763154666915,0.0023944,94925.0,94921.0,0.05688761]
[1763154667178,0.0023944,94925.0,94920.0,0.05688761]
[1763154667402,0.01,94921.0,94920.0,0.05688761]
[1763154667601,0.01,94916.0,94915.0,0.21071438]
[1763154667798,0.01,94923.0,94905.0,0.0105]
[1763154667977,0.01,94923.0,94917.0,0.21070954]
[1763154668170,0.01,94923.0,94906.0,0.001]
[1763154668376,0.01,94923.0,94921.0,0.21069965]
[1763154668632,0.0844,94922.0,94921.0,0.21069965]
[1763154669032,0.0844,94922.0,94915.0,0.001]
[1763154669243,0.5,94920.0,94915.0,0.001]
[1763154669447,0.5,94920.0,94915.0,0.21071326]
[1763154669862,0.5,94920.0,94911.0,0.21072151]
[1763154670109,0.5,94920.0,94906.0,0.04341874]
[1763154670308,0.5,94920.0,94916.0,0.21071129]
[1763154670478,0.5,94920.0,94918.0,0.21070787]
[1763154670694,0.5,94920.0,94915.0,0.001]
[1763154670870,0.5,94920.0,94911.0,0.2107229]
[1763154671232,0.5,94920.0,94915.0,0.001]
[1763154671438,0.01,94916.0,94915.0,0.001]
[1763154671642,0.01,94914.0,94911.0,0.001]
[1763154672372,0.01,94913.0,94911.0,0.05687006]
[1763154672593,0.01,94909.0,94908.0,0.05687006]
[1763154672812,0.323,94917.0,94900.0,0.05727006]
[1763154673026,0.01,94901.0,94900.0,0.0004]
[1763154673448,0.00907569,94901.0,94900.0,0.0004]
[1763154674524,0.0109433,94905.0,94900.0,0.0014]
[1763154674740,0.00907569,94901.0,94900.0,0.0014]
[1763154674974,0.0023944,94908.0,94900.0,0.0024]
[1763154675194,0.00907569,94901.0,94900.0,0.0024]
[1763154675405,0.00907569,94901.0,94900.0,0.0014]
[1763154675816,0.00907569,94901.0,94900.0,0.0024]
[1763154676276,0.09347569,94901.0,94900.0,0.0014]
[1763154676484,0.52216997,94901.0,94900.0,0.0014]
[1763154676892,0.52216997,94901.0,94900.0,0.0004]
[1763154677105,0.41647569,94901.0,94900.0,0.0014]
[1763154677320,0.4074,94901.0,94900.0,0.0014]
[1763154677570,0.41647569,94901.0,94900.0,0.0014]
[1763154677763,0.41647569,94901.0,94900.0,0.0004]
[1763154678000,0.41647569,94901.0,94900.0,0.0014]
[1763154679429,0.4074,94901.0,94900.0,0.0014]
[1763154679879,0.323,94901.0,94900.0,0.0014]
[1763154680090,0.41651569,94901.0,94900.0,0.0014]
[1763154683307,0.41651569,94901.0,94900.0,0.0004]
[1763154683767,0.41651569,94901.0,94900.0,0.0014]
[1763154684225,0.41651569,94901.0,94900.0,0.0004]
[1763154684448,0.41651569,94901.0,94900.0,0.0014]
[1763154684852,0.41651569,94901.0,94900.0,0.0004]
[1763154685309,0.41651569,94901.0,94900.0,0.0014]
[1763154686359,0.41651569,94901.0,94900.0,0.0004]
[1763154686571,0.41651569,94901.0,94900.0,0.0014]
[1763154687149,0.41651569,94901.0,94900.0,0.0004]
[1763154687319,0.41651569,94901.0,94900.0,0.0014]
[1763154687519,0.40744,94901.0,94900.0,0.0014]
[1763154687754,0.41651569,94901.0,94900.0,0.0004]
[1763154688153,0.41651569,94901.0,94900.0,0.0014]
[1763154688803,0.00907569,94901.0,94900.0,0.0014]
[1763154689006,0.09351569,94901.0,94900.0,0.0014]
[1763154689370,0.09351569,94901.0,94900.0,0.0004]
[1763154689570,0.09351569,94901.0,94900.0,0.0014]
[1763154689979,0.08444,94901.0,94900.0,0.0014]
[1763154690187,0.08444,94901.0,94900.0,0.0004]
[1763154690402,0.08444,94901.0,94900.0,0.04581874]
[1763154691055,0.08444,94912.0,94900.0,0.04481874]
[1763154691258,0.08444,94912.0,94910.0,0.21072529]
[1763154691462,0.08444,94912.0,94911.0,0.04341874]
[1763154691687,0.08444,94912.0,94911.0,0.57714247]
[1763154692092,0.08444,94912.0,94911.0,0.36641874]
[1763154693145,0.08444,94912.0,94911.0,0.36841874]
[1763154693453,0.08444,94912.0,94911.0,0.37041874]
[1763154693658,0.08444,94912.0,94911.0,0.04741874]
[1763154695149,0.08444,94912.0,94910.0,0.08114319]
[1763154695358,0.08444,94912.0,94910.0,0.21072445]
[1763154695765,0.08444,94912.0,94910.0,0.26741849]
[1763154696182,0.08444,94912.0,94910.0,0.21272445]
[1763154696402,0.08444,94912.0,94910.0,0.26941849]
[1763154696628,0.08444,94912.0,94911.0,0.05669404]
[1763154697052,0.323,94949.0,94910.0,0.01453629]
[1763154697253,0.08444,94923.0,94922.0,0.21069931]
[1763154697460,0.08444,94923.0,94922.0,0.22119931]
[1763154697681,0.08444,94923.0,94922.0,0.0105]
[1763154698757,0.08444,94923.0,94922.0,0.0125]
[1763154699390,0.08444,94923.0,94922.0,0.002]
[1763154699615,0.08444,94923.0,94922.0,0.004]
[1763154700484,0.85068484,94970.0,94922.0,0.004]
[1763154700717,0.0844,94923.0,94922.0,0.004]
[1763154700912,0.0844,94923.0,94922.0,0.21469709]
[1763154701327,0.0844,94923.0,94922.0,0.21269709]
[1763154702409,0.00907569,94946.0,94933.0,0.21067443]
[1763154702786,0.0844,94945.0,94930.0,0.01053407]
[1763154703009,0.00907569,94941.0,94926.0,0.05667749]
[1763154703240,0.00907569,94941.0,94922.0,0.0145]
[1763154703442,0.00907569,94941.0,94922.0,0.0125]
[1763154703570,0.00907569,94941.0,94922.0,0.01297565]
[1763154703779,0.00907569,94941.0,94931.0,0.03773996]
[1763154704010,0.00907569,94941.0,94932.0,0.03773996]
[1763154704208,0.00907569,94941.0,94931.0,0.03773996]
[1763154704608,0.00907569,94941.0,94933.0,0.001]
[1763154704983,0.00907569,94941.0,94934.0,0.21067267]
[1763154705183,0.0844,94945.0,94935.0,0.03773996]
[1763154705395,0.0844,94945.0,94922.0,0.01097565]
[1763154705396,0.00907569,94944.0,94937.0,0.03773996]
[1763154705650,0.00907569,94938.0,94932.0,0.03773996]
[1763154705778,0.00907569,94932.0,94931.0,0.001]
[1763154705981,0.00907569,94932.0,94927.0,0.03773996]
[1763154706274,0.00907569,94935.0,94934.0,0.001]
[1763154706476,0.0844,94935.0,94930.0,0.01053407]
[1763154706679,0.0844,94935.0,94930.0,0.03773996]
[1763154706887,0.0844,94935.0,94931.0,0.03773996]
[1763154707081,0.0844,94935.0,94932.0,0.03773996]
[1763154707836,0.0844,94950.0,94940.0,0.01053296]
[1763154708111,0.0844,94950.0,94949.0,0.21063939]
[1763154708285,0.0844,94950.0,94949.0,0.24836333]
[1763154708505,0.0844,94951.0,94950.0,0.21063717]
[1763154708717,0.0844,94951.0,94950.0,0.25405591]
[1763154708908,0.0844,94978.0,94977.0,0.21057729]
[1763154709079,0.0844,94978.0,94975.0,0.21058033]
[1763154709481,0.0844,94978.0,94974.0,0.03770811]
[1763154709914,0.0844,94978.0,94976.0,0.2105787]
[1763154710234,0.08454231,94978.0,94977.0,0.001]
[1763154711115,0.08454231,94978.0,94976.0,0.2105787]
[1763154711637,0.08454231,94978.0,94977.0,0.04341874]
[1763154712563,0.00014231,94978.0,94977.0,0.04441874]
[1763154712764,0.00014231,94978.0,94977.0,0.04341874]
[1763154713216,0.00014231,94978.0,94977.0,0.04741874]
[1763154713664,0.00014231,94978.0,94977.0,0.124563]
[1763154713872,0.00014231,94978.0,94977.0,0.447563]
[1763154714077,0.00014231,94978.0,94977.0,0.37041874]
[1763154714290,0.00014231,94978.0,94977.0,0.36841874]
[1763154714731,0.00014231,94978.0,94977.0,0.37041874]
[1763154714938,0.00014231,94978.0,94977.0,0.36841874]
[1763154715569,0.00014231,94978.0,94977.0,0.37041874]
[1763154716012,0.00014231,94978.0,94977.0,0.45090268]
[1763154718443,0.00014231,94978.0,94977.0,0.44690268]
[1763154718669,0.0844,94995.0,94994.0,0.25395835]
[1763154718885,0.08436,95016.0,95012.0,0.21049972]
[1763154719094,0.08481216,95016.0,95015.0,0.21049308]
[1763154720602,0.08481216,95016.0,94990.0,0.02052741]
[1763154720819,0.00907569,95000.0,94994.0,0.0105]
[1763154721079,0.323,95009.0,94994.0,0.0105]
[1763154721294,0.08481216,95016.0,94994.0,0.04803361]
[1763154721295,0.00045216,95016.0,94994.0,0.04803361]
[1763154721510,0.00045216,95016.0,95015.0,0.0115]
[1763154721732,0.00045216,95016.0,95015.0,0.0125]
[1763154721969,0.00045216,95016.0,95015.0,0.0105]
[1763154723729,0.00045216,95016.0,95015.0,0.0115]
[1763154723946,0.00045216,95016.0,95015.0,0.0125]
[1763154724600,0.00045216,95016.0,95015.0,0.03361]
[1763154725040,0.00045216,95016.0,95015.0,0.0125]
[1763154725455,0.00045216,95016.0,95015.0,0.0105]
[1763154726319,0.00045216,95016.0,95009.0,0.2105055]
[1763154726571,0.00045216,95016.0,95014.0,0.21049396]
[1763154726794,0.00045216,95016.0,95015.0,0.003]
[1763154727017,0.00045216,95016.0,95015.0,0.002]
[1763154727230,0.00045216,95016.0,95014.0,0.21049396]
[1763154727479,0.00045216,95016.0,95015.0,0.001]
[1763154729695,0.00045216,95016.0,95015.0,0.21149308]
[1763154729923,0.00045216,95016.0,95015.0,0.21049308]
[1763154730156,0.00045216,95016.0,95015.0,0.001]
[1763154730634,0.00045216,95016.0,95015.0,0.002]
[1763154730874,0.00952785,95016.0,95015.0,0.002]
[1763154731103,0.00952785,95016.0,95015.0,0.001]
[1763154731523,0.00952785,95016.0,95015.0,0.002]
[1763154731734,0.00045216,95016.0,95015.0,0.002]
[1763154733247,0.00045216,95016.0,95015.0,0.21249308]
[1763154733740,0.00045216,95016.0,95015.0,0.002]
[1763154734160,0.00045216,95016.0,95015.0,0.21249308]
[1763154735930,0.00045216,95016.0,95015.0,0.21049308]
[1763154736145,0.00045216,95016.0,95015.0,0.21149308]
[1763154736380,0.00045216,95016.0,95015.0,0.21349308]
[1763154736633,0.00045216,95016.0,95015.0,0.05952414]
[1763154737220,0.00045216,95016.0,95015.0,0.003]
[1763154738455,0.00045216,95016.0,95015.0,0.02237815]
[1763154738756,0.00045216,95016.0,95015.0,0.014044]
[1763154738967,0.00045216,95016.0,95015.0,0.01871875]
[1763154739378,0.00045216,95016.0,95015.0,0.003]
[1763154739578,0.00952785,95016.0,95015.0,0.003]
[1763154740279,0.02919942,95016.0,95015.0,0.001]
[1763154740486,0.00907569,95013.0,95012.0,0.03781354]
[1763154740735,0.00907569,95012.0,95010.0,0.03781354]
[1763154740930,0.00907569,95012.0,95011.0,0.03781354]
[1763154741370,0.00907569,95012.0,94990.0,0.01052742]
[1763154741371,0.01968703,95012.0,95006.0,0.05671927]
[1763154741581,0.00045216,95016.0,95008.0,0.21050858]
[1763154741787,0.00045216,95016.0,95012.0,0.05671927]
[1763154742209,0.00045216,95016.0,95015.0,0.001]
[1763154742641,0.02014388,95016.0,95011.0,0.05671927]
[1763154742846,0.00907569,95012.0,95011.0,0.05671927]
[1763154743051,0.00907569,95012.0,95010.0,0.05671927]
[1763154743257,0.00907569,95012.0,95011.0,0.05671927]
[1763154743920,0.00907569,95015.0,95014.0,0.21049511]
[1763154744133,0.00045216,95016.0,95014.0,0.21049511]
[1763154746016,0.00045216,95016.0,95014.0,0.21349511]
[1763154746237,0.00045216,95016.0,95015.0,0.01574687]
[1763154746654,0.00045216,95016.0,95014.0,0.003]
[1763154746860,0.00045216,95016.0,95015.0,0.21049308]
[1763154748427,0.00045216,95016.0,95015.0,0.21149308]
[1763154748832,0.00045216,95016.0,95015.0,0.21349308]
[1763154749451,0.00045216,95016.0,95015.0,0.003]
[1763154749654,0.00045216,95016.0,95015.0,0.21349308]
[1763154749860,0.00045216,95016.0,95015.0,0.003]
[1763154750077,0.00045216,95016.0,95015.0,0.21349308]
[1763154751755,0.00045216,95016.0,95015.0,0.22399308]
[1763154753977,0.00045216,95016.0,95015.0,0.0135]
[1763154754214,0.00045216,95016.0,95015.0,0.22399308]
[1763154754860,0.00045216,95016.0,95015.0,0.37379308]
[1763154756333,0.00045216,95016.0,95015.0,0.1633]
[1763154756759,0.00045216,95016.0,95015.0,0.37379308]
[1763154757176,0.00045216,95016.0,95015.0,0.1633]
[1763154757591,0.00045216,95016.0,95015.0,0.0125]
[1763154757799,0.00045216,95016.0,95015.0,0.002]
[1763154757800,0.00952785,95016.0,95015.0,0.002]
[1763154758020,0.00952785,95016.0,95015.0,0.003]
[1763154758439,0.00952785,95016.0,95015.0,0.001]
[1763154758645,0.00045216,95016.0,95010.0,0.07574583]
[1763154758858,0.00045216,95016.0,95006.0,0.07574583]
[1763154758859,0.00907569,95012.0,95006.0,0.07574583]
[1763154760398,0.00907569,95012.0,95005.0,0.07574583]
[1763154760648,0.00907569,95012.0,95006.0,0.001]
[1763154760857,0.00045216,95016.0,95006.0,0.09879713]
[1763154761085,0.00045216,95016.0,95007.0,0.07574583]
[1763154761302,0.00907569,95008.0,95006.0,0.001]
[1763154761744,0.00907569,95008.0,95004.0,0.07574583]
[1763154761950,0.00907569,95008.0,94993.0,0.10469619]
[1763154761951,0.00907569,95008.0,95005.0,0.001]
[1763154762364,0.00907569,95008.0,95002.0,0.07574583]
[1763154762772,0.00907569,95008.0,95006.0,0.001]
[1763154763009,0.00907569,95007.0,95006.0,0.001]
[1763154763212,0.00907569,95007.0,95004.0,0.03786708]
[1763154763421,0.00907569,95003.0,95002.0,0.03786708]
[1763154763633,0.00907569,95001.0,95000.0,0.03786708]
[1763154764245,0.323,95009.0,95000.0,0.03786708]
[1763154764458,0.00907569,94998.0,94997.0,0.05680062]
[1763154764663,0.00907569,94998.0,94996.0,0.05680062]
[1763154764981,0.00907569,94998.0,94995.0,0.05680062]
[1763154765181,0.00907569,94998.0,94987.0,0.21055337]
[1763154765182,0.00907569,94998.0,94994.0,0.05680062]
[1763154765382,0.00907569,94998.0,94995.0,0.05680062]
[1763154765784,0.323,95009.0,94996.0,0.001]
[1763154765990,0.00907569,94997.0,94996.0,0.001]
[1763154766188,0.00907569,94997.0,94991.0,0.05680062]
[1763154766396,0.00907569,94997.0,94996.0,0.03781207]
[1763154766598,0.00907569,94997.0,94995.0,0.03881207]
[1763154766795,0.00907569,94996.0,94995.0,0.001]
[1763154767743,0.323,95009.0,94994.0,0.03781207]
[1763154767946,0.00907569,94995.0,94994.0,0.03781207]
[1763154768781,0.323,95009.0,94993.0,0.03781207]
[1763154768944,0.323,94999.0,94994.0,0.03779152]
[1763154769496,0.00907569,94994.0,94993.0,0.03779152]
[1763154770354,0.00907569,94993.0,94992.0,0.03779152]
[1763154770979,0.00907569,94992.0,94986.0,0.03779152]
[1763154771200,0.00907569,94995.0,94994.0,0.001]
[1763154771605,0.00907569,94980.0,94979.0,0.03779152]
[1763154771810,0.00907569,94979.0,94978.0,0.03779152]
[1763154772420,0.08432,94979.0,94978.0,0.03779152]
[1763154772637,0.08432,94979.0,94977.0,0.21057688]
[1763154772845,0.08432,94979.0,94976.0,0.21057881]
[1763154773016,0.08432,94979.0,94972.0,0.05680062]
[1763154773233,0.08432,94979.0,94978.0,0.24831911]
[1763154773588,0.08432,94979.0,94978.0,0.21057508]
[1763154774013,0.08432,94979.0,94978.0,0.001]
[1763154774212,0.08432,94979.0,94978.0,0.21157508]
[1763154774649,0.08432,94979.0,94978.0,0.001]
[1763154774827,0.08432,94979.0,94978.0,0.21257508]
[1763154776827,0.08432,94979.0,94978.0,0.002]
[1763154777209,0.08436,94979.0,94978.0,0.21257508]
[1763154777437,0.08436,94979.0,94978.0,0.03973294]
[1763154777612,0.08436,94979.0,94978.0,0.03873294]
[1763154777814,0.08436,94979.0,94978.0,0.001]
[1763154778017,0.08436,94979.0,94978.0,0.003]
[1763154778883,0.08436,94979.0,94978.0,0.0407353]
[1763154779115,0.08436,94979.0,94978.0,0.003]
[1763154779821,0.08436,94979.0,94977.0,0.0377353]
[1763154780032,0.08436,94979.0,94978.0,0.003]
[1763154780248,0.09343569,94979.0,94978.0,0.0024673]
[1763154780451,0.09343569,94979.0,94978.0,0.0034673]
[1763154780654,0.09343569,94979.0,94978.0,0.0014673]
[1763154781260,0.09343569,94979.0,94978.0,0.0004673]
[1763154781687,0.09343569,94979.0,94978.0,0.0014673]
[1763154782130,0.03164378,94986.0,94978.0,0.0014673]
[1763154782269,0.09343569,94979.0,94978.0,0.0014673]
[1763154782880,0.09343569,94979.0,94978.0,0.0004673]
[1763154783309,0.09343569,94979.0,94978.0,0.0014673]
[1763154783853,0.09343569,94979.0,94978.0,0.0004673]
[1763154784053,0.09343569,94979.0,94978.0,0.0014673]
[1763154784681,0.09343569,94979.0,94978.0,0.0004673]
[1763154786144,0.09343569,94979.0,94978.0,0.0014673]
[1763154786558,0.09343569,94979.0,94978.0,0.0004673]
[1763154787007,0.03164555,94981.0,94978.0,0.0004673]
[1763154787219,0.09343569,94979.0,94978.0,0.0004673]
[1763154787658,0.09343569,94979.0,94978.0,0.21104238]
[1763154787883,0.08436,94979.0,94978.0,0.0004673]
[1763154788098,0.08436,94979.0,94978.0,0.21104238]
[1763154788319,0.08436,94979.0,94978.0,0.267843]
[1763154788542,0.00907569,94986.0,94983.0,0.21056352]
[1763154788754,0.09343569,94979.0,94978.0,0.0004673]
[1763154788972,0.08436,94979.0,94978.0,0.0004673]
[1763154789185,0.08436,94979.0,94978.0,0.26775872]
[1763154789402,0.323,95002.0,94983.0,0.21056355]
[1763154789403,0.00907569,94989.0,94983.0,0.21056355]
[1763154789663,0.323,95002.0,94986.0,0.21055676]
[1763154789664,0.08436,94988.0,94986.0,0.21055676]
[1763154789879,0.08436,94988.0,94978.0,0.0004673]
[1763154789880,0.08436,94988.0,94987.0,0.21055461]
[1763154790551,0.08436,94988.0,94984.0,0.21055992]
[1763154790765,0.08436,94988.0,94978.0,0.0004673]
[1763154790766,0.08436,94988.0,94983.0,0.001]
[1763154791029,0.09343569,94988.0,94983.0,0.001]
[1763154791882,0.09343569,94988.0,94987.0,0.001]
[1763154792540,0.09343569,94988.0,94987.0,0.03887063]
[1763154792748,0.09343569,94988.0,94987.0,0.003]
[1763154792967,0.09343569,94988.0,94987.0,0.002]
[1763154793616,0.08436,94988.0,94982.0,0.03787063]
[1763154793826,0.08436,94988.0,94979.0,0.18767063]
[1763154794042,0.00907569,94980.0,94979.0,0.1498]
[1763154794250,0.08436,94988.0,94987.0,0.001]
[1763154794461,0.4361261,94988.0,94987.0,0.001]
[1763154794906,0.46777165,94988.0,94987.0,0.001]
[1763154795547,0.323,94987.0,94978.0,0.0004673]
[1763154795754,0.33207569,94979.0,94978.0,0.0004673]
[1763154795973,0.35176171,94979.0,94978.0,0.0004673]
[1763154797910,0.46168171,94979.0,94978.0,0.0004673]
[1763154803056,0.50510045,94979.0,94978.0,0.0004673]
[1763154803265,0.18954393,94979.0,94978.0,0.0004673]
[1763154803477,0.19954393,94979.0,94978.0,0.0004673]
[1763154804337,0.18302476,94979.0,94978.0,0.0004673]
[1763154805386,0.50602476,94979.0,94978.0,0.0004673]
[1763154807328,0.57072256,94979.0,94978.0,0.0004673]
[1763154808190,0.10248,94968.0,94967.0,0.00633572]
[1763154808405,0.36641874,94949.0,94921.0,0.03787063]
[1763154808663,0.01,94922.0,94921.0,0.00047565]
[1763154808910,0.09436,94922.0,94921.0,0.00047565]
[1763154809605,0.43015258,94922.0,94921.0,0.00047565]
[1763154810250,0.43015258,94922.0,94921.0,0.00147565]
[1763154810679,0.41736,94922.0,94921.0,0.00147565]
[1763154811107,0.41736,94922.0,94921.0,0.00247565]
[1763154811539,0.41736,94922.0,94921.0,0.00047565]
[1763154811744,0.41736,94922.0,94921.0,0.00147565]
[1763154813145,0.4174,94922.0,94921.0,0.00147565]
[1763154813759,0.01,94922.0,94921.0,0.00047565]
[1763154814004,0.0944,94922.0,94921.0,0.00147565]
[1763154814326,0.0944,94922.0,94921.0,0.00047565]
[1763154814748,0.0844,94922.0,94921.0,0.00047565]
[1763154814943,0.0944,94922.0,94921.0,0.00047565]
[1763154815166,0.0844,94922.0,94921.0,0.00147565]
[1763154815377,0.0944,94922.0,94921.0,0.00147565]
[1763154816684,0.0944,94922.0,94921.0,0.00047565]
[1763154816881,0.0944,94922.0,94921.0,0.00147565]
[1763154818358,0.0944,94922.0,94921.0,0.00047565]
[1763154818765,0.12606482,94922.0,94921.0,0.00047565]
[1763154819386,0.44906482,94922.0,94921.0,0.00047565]
[1763154819788,0.44906482,94922.0,94921.0,0.00147565]
[1763154822743,0.43906482,94922.0,94921.0,0.00147565]
[1763154822950,0.4174,94922.0,94921.0,0.00147565]
[1763154823328,0.41443772,94922.0,94921.0,0.00147565]
[1763154829735,0.0944,94922.0,94921.0,0.00147565]
[1763154832164,0.0944,94922.0,94921.0,0.00047565]
[1763154832400,0.0944,94922.0,94921.0,0.00147565]
[1763154833026,0.0944,94922.0,94921.0,0.00047565]
[1763154833237,0.0944,94922.0,94921.0,0.00147565]
[1763154835214,0.0944,94922.0,94921.0,0.00047565]
[1763154835400,0.0944,94922.0,94921.0,0.00147565]
[1763154837308,0.43709748,94922.0,94921.0,0.00147565]
[1763154837933,0.43709748,94922.0,94921.0,0.00047565]
[1763154838351,0.43709748,94922.0,94921.0,0.00147565]
[1763154841504,0.35269748,94922.0,94921.0,0.00147565]
[1763154841698,0.0944,94922.0,94921.0,0.00147565]
[1763154841934,0.0944,94922.0,94921.0,0.05825164]
[1763154842145,0.0944,94922.0,94921.0,0.00147565]
[1763154843011,0.01,94922.0,94921.0,0.00147565]
[1763154843433,0.0844,94922.0,94921.0,0.21217718]
[1763154843658,0.0844,94922.0,94921.0,0.00047565]
[1763154843870,0.0844,94922.0,94921.0,0.00147565]
[1763154844342,0.0844,94922.0,94921.0,0.00047565]
[1763154844548,0.0944,94922.0,94921.0,0.00047565]
[1763154844750,0.0944,94922.0,94921.0,0.00147565]
[1763154845166,0.0844,94922.0,94921.0,0.00147565]
[1763154845390,0.0944,94922.0,94921.0,0.00147565]
[1763154849975,0.0844,94922.0,94921.0,0.00147565]
[1763154850186,0.0844,94922.0,94921.0,0.21217496]
[1763154850576,0.01,94945.0,94943.0,0.21065133]
[1763154850869,0.01,94945.0,94935.0,0.07581401]
[1763154850870,0.0844,94944.0,94935.0,0.07581401]
[1763154851082,0.0844,94943.0,94938.0,0.21066198]
[1763154852171,0.0844,94943.0,94936.0,0.21066823]
[1763154852597,0.0844,94943.0,94933.0,0.28648814]
[1763154852805,0.0844,94943.0,94941.0,0.21065649]
[1763154853662,0.0844,94943.0,94940.0,0.21065691]
[1763154853862,0.0844,94943.0,94941.0,0.21065493]
[1763154854066,0.0844,94943.0,94934.0,0.07581401]
[1763154854277,0.0844,94943.0,94935.0,0.21066938]
[1763154854517,0.0844,94943.0,94941.0,0.21165524]
[1763154854724,0.0844,94943.0,94941.0,0.001]
[1763154855550,0.0844,94943.0,94936.0,0.21066708]
[1763154855985,0.0844,94943.0,94937.0,0.21066541]
[1763154856159,0.0844,94943.0,94938.0,0.21066332]
[1763154856396,0.0844,94943.0,94936.0,0.21066708]
[1763154856604,0.0844,94943.0,94937.0,0.21066498]
[1763154857000,0.0844,94943.0,94936.0,0.2106681]
[1763154857247,0.0844,94943.0,94942.0,0.21065492]
[1763154857463,0.0944,94968.0,94962.0,0.21060907]
[1763154857687,0.0844,94955.0,94954.0,0.2106283]
[1763154858340,0.0844,94955.0,94954.0,0.2861514]